bitfinex/quotes_SOLUSD_20260302
["timestamp","ask_amount","ask_price","bid_price","bid_amount"]
[1772475890546,4.17705832,87.458,87.421,11.43889912]
[1772475891826,4.17705832,87.439,87.401,15.90044076]
[1772475892037,4.17705832,87.439,87.363,56.79496503]
[1772475892038,4.17705832,87.409,87.381,11.4440702]
[1772475892248,4.17705832,87.409,87.375,4.45892408]
[1772475892448,4.17705832,87.409,87.344,45.79592644]
[1772475892449,4.17705832,87.409,87.391,11.44282592]
[1772475892643,11.43916082,87.419,87.392,4.45892408]
[1772475894249,0.28432314,87.423,87.393,15.90148812]
[1772475894449,4.46138146,87.423,87.39,41.31771303]
[1772475894843,4.46138146,87.423,87.391,4.45892408]
[1772475898052,4.46138146,87.421,87.391,4.45892408]
[1772475898453,4.46138146,87.421,87.392,11.44269498]
[1772475898653,4.46138146,87.421,87.393,4.45892408]
[1772475899558,4.17705832,87.409,87.39,41.31771303]
[1772475900139,11.4406004,87.408,87.39,41.31771303]
[1772475900345,4.17705832,87.399,87.361,15.90567949]
[1772475900560,4.17705832,87.399,87.362,4.45892408]
[1772475900863,4.17705832,87.399,87.371,4.45892408]
[1772475901063,4.17705832,87.407,87.371,4.45892408]
[1772475901645,4.17705832,87.407,87.38,4.19160532]
[1772475901845,4.17705832,87.407,87.378,4.45892408]
[1772475902268,45.74634868,87.439,87.355,4.45892408]
[1772475902269,4.17705832,87.389,87.355,4.45892408]
[1772475902470,4.17705832,87.389,87.361,4.45892408]
[1772475902848,4.17705832,87.399,87.361,4.45892408]
[1772475903464,0.28432314,87.374,87.334,4.45892408]
[1772475903665,4.17705832,87.359,87.326,15.91016351]
[1772475903868,4.17705832,87.357,87.318,4.45892408]
[1772475904165,4.17705832,87.339,87.31,4.19160532]
[1772475904461,4.17705832,87.351,87.31,4.19160532]
[1772475904664,4.17705832,87.341,87.301,11.45462251]
[1772475905552,0.28432314,87.349,87.3,0.2]
[1772475905553,4.17705832,87.337,87.3,0.2]
[1772475905868,4.17705832,87.311,87.29,0.2]
[1772475906254,4.5,87.365,87.301,0.14216157]
[1772475906560,11.44334969,87.387,87.338,3.3924469]
[1772475906763,11.44334969,87.387,87.35,10.48054035]
[1772475906959,11.44071298,87.408,87.37,14.93946443]
[1772475907150,12.13008523,87.412,87.39,10.7734323]
[1772475907653,12.13008523,87.412,87.39,7.3809854]
[1772475908051,10.7734323,87.44,87.4,10.7734323]
[1772475908248,11.43654433,87.439,87.393,11.44256332]
[1772475908452,4.17705832,87.438,87.41,10.7734323]
[1772475908651,4.17705832,87.458,87.421,4.45892408]
[1772475908869,4.17705832,87.458,87.43,10.7734323]
[1772475909666,4.17705832,87.456,87.43,10.7734323]
[1772475909966,4.17705832,87.449,87.393,40.04897344]
[1772475910163,4.17705832,87.439,87.401,4.45892408]
[1772475910357,4.17705832,87.437,87.402,11.44138578]
[1772475910669,4.17705832,87.429,87.391,11.44282592]
[1772475911668,4.17705832,87.429,87.382,4.45892408]
[1772475911669,4.17705832,87.419,87.382,15.90283391]
[1772475911975,4.17705832,87.419,87.383,4.45892408]
[1772475912486,11.43929167,87.418,87.384,11.44374256]
[1772475912689,11.43848873,87.425,87.391,4.45892408]
[1772475912860,4.17705832,87.437,87.4,10.7734323]
[1772475913365,4.17705832,87.437,87.401,4.45892408]
[1772475913567,4.17705832,87.436,87.401,4.45892408]
[1772475914375,40.02889135,87.437,87.366,11.44610031]
[1772475914376,4.17705832,87.407,87.366,11.44610031]
[1772475914684,4.17705832,87.397,87.361,11.44667857]
[1772475915373,4.17705832,87.397,87.361,15.90560265]
[1772475916166,4.17705832,87.397,87.363,11.44649336]
[1772475916477,15.60533051,87.396,87.363,11.44649336]
[1772475917085,4.16315925,87.369,87.33,10.7734323]
[1772475917378,4.29782039,87.349,87.311,11.45331057]
[1772475917958,10.7734323,87.35,87.311,11.45331057]
[1772475917959,10.7734323,87.35,87.312,4.08477216]
[1772475918481,11.44832797,87.349,87.314,4.08477216]
[1772475918683,4.29782039,87.358,87.32,14.85820446]
[1772475918883,11.44727955,87.357,87.321,4.08477216]
[1772475920172,4.29782039,87.349,87.313,40.08566879]
[1772475920371,4.29782039,87.349,87.314,4.08477216]
[1772475920581,4.29782039,87.349,87.282,91.65634205]
[1772475920582,4.58214353,87.369,87.321,4.08477216]
[1772475920760,4.29782039,87.369,87.331,4.08477216]
[1772475920962,4.29782039,87.369,87.34,10.7734323]
[1772475921578,4.29782039,87.399,87.36,10.7734323]
[1772475921765,4.29782039,87.399,87.37,10.7734323]
[1772475922187,4.29782039,87.399,87.361,4.08477216]
[1772475922772,11.44190942,87.398,87.362,11.44662439]
[1772475922967,4.29782039,87.397,87.363,4.08477216]
[1772475923866,11.44007615,87.413,87.38,10.7734323]
[1772475924065,4.29782039,87.409,87.37,10.7734323]
[1772475924379,40.03994115,87.413,87.362,11.44662439]
[1772475924380,4.29782039,87.399,87.362,11.44662439]
[1772475924769,4.29782039,87.399,87.363,4.08477216]
[1772475924978,15.07125269,87.41,87.371,4.08477216]
[1772475925388,0.28432314,87.417,87.381,4.08477216]
[1772475925684,4.29782039,87.416,87.372,4.08477216]
[1772475926879,10.7734323,87.41,87.373,11.44518329]
[1772475927077,4.29782039,87.409,87.373,11.44518329]
[1772475927274,4.29782039,87.407,87.372,4.08477216]
[1772475927475,4.29782039,87.399,87.37,10.7734323]
[1772475929890,4.29782039,87.399,87.371,11.44544528]
[1772475930062,15.73971159,87.399,87.371,11.44544528]
[1772475930264,15.73971159,87.399,87.37,10.7734323]
[1772475930483,15.73971159,87.399,87.371,11.44544528]
[1772475932274,102.93081704,87.438,87.372,4.08477216]
[1772475932275,11.43968426,87.415,87.372,4.08477216]
[1772475932481,4.29782039,87.414,87.372,4.08477216]
[1772475932693,4.29782039,87.409,87.37,10.7734323]
[1772475934182,4.29782039,87.407,87.371,11.44544528]
[1772475936390,11.44086218,87.406,87.372,4.08477216]
[1772475936689,4.29782039,87.405,87.372,4.08477216]
[1772475936887,4.29782039,87.426,87.391,4.08477216]
[1772475939290,4.29782039,87.424,87.39,10.77684235]
[1772475939794,4.58214353,87.419,87.38,10.77684235]
[1772475940093,4.29782039,87.409,87.379,11.4443738]
[1772475940291,4.29782039,87.418,87.39,10.77684235]
[1772475940595,4.29782039,87.418,87.39,14.86161451]
[1772475940773,4.29782039,87.418,87.391,4.08477216]
[1772475941298,11.43942253,87.417,87.391,15.5275142]
[1772475941894,4.29782039,87.418,87.391,15.5275142]
[1772475942082,11.43892284,87.421,87.392,4.08477216]
[1772475942591,4.29782039,87.438,87.401,4.08477216]
[1772475942782,4.29782039,87.438,87.391,40.04980684]
[1772475942783,11.43546366,87.448,87.42,10.77684235]
[1772475943487,11.43546366,87.448,87.421,11.43889912]
[1772475943686,4.5,87.447,87.42,10.77684235]
[1772475944190,4.5,87.447,87.43,10.77684235]
[1772475944373,4.5,87.446,87.42,10.77684235]
[1772475944694,4.5,87.446,87.411,11.44020775]
[1772475944891,4.5,87.446,87.407,11.44069269]
[1772475945190,4.5,87.429,87.39,10.77684235]
[1772475945694,4.5,87.427,87.391,11.44282592]
[1772475946694,4.5,87.417,87.38,10.77684235]
[1772475946879,4.5,87.409,87.37,10.77684235]
[1772475947073,4.5,87.409,87.362,11.44662439]
[1772475947286,4.5,87.409,87.37,10.77684235]
[1772475948186,4.5,87.407,87.371,11.44544528]
[1772475949386,4.5,87.407,87.367,11.4459102]
[1772475949593,4.5,87.399,87.362,11.44660466]
[1772475950498,4.5,87.397,87.362,11.44660466]
[1772475950798,4.5,87.397,87.35,10.77684235]
[1772475950978,11.44190942,87.398,87.349,11.44827779]
[1772475950979,4.5,87.389,87.349,11.44827779]
[1772475951178,4.5,87.379,87.341,11.44937658]
[1772475951897,4.5,87.391,87.36,10.77684235]
[1772475952295,11.44190942,87.398,87.37,10.77684235]
[1772475952700,4.5,87.397,87.36,10.77684235]
[1772475953003,4.5,87.397,87.35,10.77684235]
[1772475954293,4.5,87.395,87.351,11.44806584]
[1772475956284,4.5,87.393,87.36,10.77684235]
[1772475958593,11.44243311,87.394,87.37,10.77684235]
[1772475960089,4.5,87.395,87.37,10.77684235]
[1772475960684,4.5,87.395,87.36,10.77684235]
[1772475960891,4.5,87.389,87.353,11.44780373]
[1772475962002,10.77684235,87.37,87.3,10.77684235]
[1772475962208,40.05172393,87.387,87.31,10.77684235]
[1772475962209,4.5,87.359,87.31,10.77684235]
[1772475962591,0.28432314,87.358,87.31,10.77684235]
[1772475962801,4.5,87.357,87.31,10.77684235]
[1772475963107,4.5,87.366,87.33,10.77684235]
[1772475963313,4.5,87.366,87.34,10.77684235]
[1772475963696,4.5,87.366,87.33,10.77684235]
[1772475964513,4.5,87.364,87.328,11.45096664]
[1772475966915,4.5,87.362,87.33,10.77684235]
[1772475968208,4.5,87.36,87.33,10.77684235]
[1772475970306,4.5,87.358,87.33,10.77684235]
[1772475971318,4.5,87.367,87.34,10.77684235]
[1772475971498,4.5,87.367,87.331,11.45068761]
[1772475972609,4.5,87.357,87.323,11.45173665]
[1772475974338,10.77684235,87.38,87.33,10.77684235]
[1772475974625,4.5,87.391,87.37,10.20447313]
[1772475974805,3.69383402,87.407,87.38,10.77684235]
[1772475975006,4.5,87.423,87.39,10.77684235]
[1772475977214,4.5,87.417,87.38,10.77684235]
[1772475978202,57.18764172,87.432,87.362,40.06318536]
[1772475978203,4.5,87.438,87.41,10.77684235]
[1772475979115,4.5,87.427,87.38,22.22110877]
[1772475979318,0.28432314,87.428,87.359,3.69383402]
[1772475979319,4.5,87.419,87.36,11.44688644]
[1772475979510,4.5,87.399,87.35,10.77684235]
[1772475979708,4.5,87.397,87.36,10.77684235]
[1772475981004,4.5,87.397,87.37,10.77684235]
[1772475981211,4.5,87.397,87.361,11.44675541]
[1772475981212,11.44217126,87.396,87.361,11.44675541]
[1772475981614,15.94217126,87.396,87.361,11.44675541]
[1772475983710,4.5,87.404,87.37,10.77684235]
[1772475984407,4.5,87.404,87.361,11.44675541]
[1772475984606,4.5,87.408,87.38,10.77684235]
[1772475985224,4.82477569,87.454,87.371,11.44544528]
[1772475985225,4.5,87.406,87.371,11.44544528]
[1772475985914,4.5,87.437,87.4,10.77684235]
[1772475986116,44.52470095,87.446,87.41,10.77684235]
[1772475986317,4.5,87.445,87.42,10.77684235]
[1772475986527,4.5,87.449,87.42,10.77684235]
[1772475988305,4.5,87.447,87.42,10.77684235]
[1772475988501,11.4353673,87.448,87.391,40.04989072]
[1772475988502,4.5,87.439,87.4,10.77684235]
[1772475989349,4.5,87.439,87.41,10.77684235]
[1772475990136,4.5,87.439,87.4,10.77684235]
[1772475990433,4.5,87.437,87.41,10.77684235]
[1772475991607,4.5,87.437,87.401,11.44151668]
[1772475992422,4.5,87.435,87.401,11.44151668]
[1772475993531,4.5,87.459,87.43,10.77684235]
[1772475993709,4.5,87.459,87.42,10.77684235]
[1772475994136,4.5,87.457,87.41,10.77684235]
[1772475994313,4.5,87.447,87.411,11.44020775]
[1772475995539,4.5,87.439,87.4,10.76645638]
[1772475995841,4.5,87.439,87.375,1.14449213]
[1772475995842,4.5,87.419,87.38,10.76645638]
[1772475996134,4.5,87.419,87.376,11.44479033]
[1772475996426,4.5,87.417,87.38,10.76645638]
[1772475997432,4.5,87.409,87.37,10.76645638]
[1772475997628,40.03752086,87.418,87.35,22.21465328]
[1772475997629,4.5,87.399,87.35,22.21465328]
[1772475998221,4.5,87.389,87.35,22.21465328]
[1772475998439,4.5,87.387,87.35,22.21465328]
[1772476000734,4.5,87.385,87.35,22.21465328]
[1772476001441,4.5,87.385,87.35,11.4481969]
[1772476001636,4.5,87.385,87.35,22.21465328]
[1772476004349,4.5,87.383,87.35,22.21465328]
[1772476005237,11.44306559,87.39,87.35,50.83514555]
[1772476005539,4.5,87.389,87.35,50.83514555]
[1772476007339,15.94321874,87.388,87.35,50.83514555]
[1772476007537,4.5,87.387,87.35,50.83514555]
[1772476008235,4.5,87.387,87.35,22.21465328]
[1772476008540,4.5,87.387,87.35,15.47321681]
[1772476008918,4.5,87.379,87.341,11.44937658]
[1772476009119,4.5,87.379,87.35,4.02501991]
[1772476011453,4.5,87.369,87.331,11.45068761]
[1772476012140,4.5,87.369,87.331,40.07740664]
[1772476012327,4.5,87.385,87.35,4.02501991]
[1772476012641,4.5,87.404,87.37,4.02501991]
[1772476012842,4.5,87.414,87.38,4.02501991]
[1772476013626,3.69383402,87.457,87.4,4.02501991]
[1772476013627,4.5,87.441,87.4,4.02501991]
[1772476013828,4.5,87.441,87.41,4.02501991]
[1772476014349,4.5,87.441,87.4,4.02501991]
[1772476014524,4.5,87.439,87.39,4.02501991]
[1772476014846,28.58771112,87.451,87.39,4.02501991]
[1772476014847,4.5,87.429,87.39,4.02501991]
[1772476015239,4.5,87.429,87.4,4.02501991]
[1772476015745,11.43798325,87.428,87.391,11.44282592]
[1772476015923,11.43798325,87.428,87.4,4.02501991]
[1772476016423,11.43798325,87.428,87.4,10.76936624]
[1772476018639,11.43798325,87.428,87.379,3.69383402]
[1772476018640,4.5,87.447,87.41,10.76936624]
[1772476018845,4.5,87.439,87.401,40.04530839]
[1772476019229,4.5,87.439,87.401,11.44151668]
[1772476019627,4.5,87.429,87.401,11.44151668]
[1772476020032,4.5,87.449,87.41,10.76936624]
[1772476020438,4.5,87.439,87.401,11.44151668]
[1772476020648,4.5,87.419,87.38,10.76936624]
[1772476021039,4.5,87.419,87.39,10.76936624]
[1772476021236,4.5,87.429,87.39,10.76936624]
[1772476021437,11.43667512,87.438,87.4,10.76936624]
[1772476021438,15.93667512,87.438,87.4,10.76936624]
[1772476021641,4.5,87.437,87.4,10.76936624]
[1772476022150,4.5,87.429,87.39,10.76936624]
[1772476022731,4.5,87.427,87.391,11.44282592]
[1772476023430,4.5,87.427,87.391,40.04989072]
[1772476023624,45.73268516,87.465,87.391,40.04989072]
[1772476023625,4.5,87.443,87.41,10.76936624]
[1772476024631,11.43615196,87.442,87.411,11.44020775]
[1772476024837,4.5,87.441,87.411,11.44020775]
[1772476025946,4.5,87.439,87.411,11.44020775]
[1772476026878,10.76936624,87.44,87.381,1.14441354]
[1772476026879,0.1,87.48,87.43,10.76936624]
[1772476027044,0.1,87.48,87.46,10.76936624]
[1772476027250,0.1,87.48,87.42,10.76936624]
[1772476027251,1e-08,87.49,87.47,10.76936624]
[1772476027448,4.5,87.502,87.49,5.96992979]
[1772476027635,0.1,87.51,87.49,16.73929603]
[1772476027841,0.1,87.51,87.49,5.96992979]
[1772476028036,4.5,87.516,87.49,16.73929603]
[1772476028955,28.55697362,87.545,87.49,16.73929603]
[1772476028956,4.5,87.556,87.511,0.28432314]
[1772476029146,4.5,87.556,87.491,234.30981467]
[1772476029147,4.5,87.556,87.53,10.76936624]
[1772476029350,4.5,87.556,87.51,10.76936624]
[1772476029546,4.5,87.556,87.52,10.76936624]
[1772476030457,0.1,87.56,87.54,10.76936624]
[1772476031034,0.1,87.56,87.541,39.98126591]
[1772476031434,4.5,87.576,87.541,39.98126591]
[1772476031640,4.5,87.576,87.55,10.76936624]
[1772476032056,4.76917,87.575,87.55,10.76936624]
[1772476032248,4.76917,87.575,87.541,39.98126591]
[1772476032445,10.83224238,87.59,87.547,4.48484431]
[1772476032446,0.1,87.59,87.547,4.48484431]
[1772476032757,10.73224238,87.61,87.554,4.48484431]
[1772476032955,10.73224238,87.59,87.545,39.97943913]
[1772476033155,10.73224238,87.58,87.545,11.42269689]
[1772476033355,10.73224238,87.58,87.548,3.69383402]
[1772476033562,10.73224238,87.56,87.521,4.48484431]
[1772476033759,10.73224238,87.56,87.485,91.4441736]
[1772476033760,10.73224238,87.56,87.522,11.42569868]
[1772476034146,10.73224238,87.56,87.522,39.98994538]
[1772476034461,4.29709064,87.559,87.522,39.98994538]
[1772476034861,4.29709064,87.559,87.522,44.47478969]
[1772476035240,4.29709064,87.569,87.523,4.76916745]
[1772476035447,4.49426602,87.579,87.523,4.76916745]
[1772476035647,4.49426602,87.579,87.526,4.60010187]
[1772476036757,4.49426602,87.579,87.526,4.31577873]
[1772476037145,4.49426602,87.58,87.534,4.31577873]
[1772476037344,4.49426602,87.58,87.538,3.69383402]
[1772476037560,4.49426602,87.58,87.539,4.25860745]
[1772476038263,4.30237963,87.59,87.543,4.25860745]
[1772476038463,45.63195013,87.658,87.538,3.69383402]
[1772476038464,4.30237963,87.633,87.552,0.28432314]
[1772476038652,4.30237963,87.629,87.574,0.28432314]
[1772476038963,4.30237963,87.629,87.582,4.54293059]
[1772476039361,4.30237963,87.628,87.584,4.25860745]
[1772476039557,4.30237963,87.619,87.583,11.41774088]
[1772476039746,4.30237963,87.609,87.573,11.41896418]
[1772476040155,4.30237963,87.599,87.563,11.42034877]
[1772476040350,4.30237963,87.61,87.564,4.25860745]
[1772476040647,4.30237963,87.609,87.564,4.25860745]
[1772476041144,4.30237963,87.599,87.563,11.42034877]
[1772476041353,4.30237963,87.599,87.557,3.69383402]
[1772476041668,4.30237963,87.609,87.561,4.25860745]
[1772476041891,4.30237963,87.609,87.563,4.25860745]
[1772476042669,4.30237963,87.609,87.562,1.42637106]
[1772476042670,4.30237963,87.609,87.57,0.28432314]
[1772476043170,4.30237963,87.619,87.57,4.54293059]
[1772476043469,4.30237963,87.619,87.56,28.5515285]
[1772476043470,4.30237963,87.619,87.573,4.25860745]
[1772476043649,4.30237963,87.609,87.574,11.41891428]
[1772476043850,4.30237963,87.599,87.574,11.41891428]
[1772476044472,4.30237963,87.599,87.563,11.42034877]
[1772476044862,39.94567388,87.619,87.526,1.14251765]
[1772476044863,4.30237963,87.579,87.54,11.42334932]
[1772476045267,4.30237963,87.579,87.54,15.68195677]
[1772476045472,4.30237963,87.579,87.541,4.25860745]
[1772476045946,4.30237963,87.569,87.542,11.42308834]
[1772476046465,4.30237963,87.569,87.5,1.14285714]
[1772476046466,4.30237963,87.569,87.531,11.42452388]
[1772476049868,4.30237963,87.567,87.531,11.42452388]
[1772476050671,4.30237963,87.539,87.51,1.14272654]
[1772476050870,4.30237963,87.539,87.491,4.25860745]
[1772476051055,4.30237963,87.539,87.496,32.83106613]
[1772476051262,4.30237963,87.539,87.497,4.25860745]
[1772476051578,4.30237963,87.549,87.497,4.25860745]
[1772476051951,4.30237963,87.547,87.499,4.25860745]
[1772476054971,4.30237963,87.556,87.513,4.25860745]
[1772476055163,4.30237963,87.564,87.523,4.25860745]
[1772476055363,4.30237963,87.564,87.507,3.69383402]
[1772476055559,10.73224238,87.55,87.5,39.99999999]
[1772476055873,4.30237963,87.549,87.501,0.28432314]
[1772476056457,4.30237963,87.549,87.5,39.99999999]
[1772476056661,4.30237963,87.539,87.5,39.99999999]
[1772476057080,4.30237963,87.539,87.493,3.69383402]
[1772476057378,4.30237963,87.539,87.494,4.22058317]
[1772476059574,4.30237963,87.559,87.502,4.22058317]
[1772476059782,4.30237963,87.559,87.513,4.22058317]
[1772476059980,4.30237963,87.558,87.513,4.22058317]
[1772476060869,4.30237963,87.556,87.515,4.22058317]
[1772476061994,4.30237963,87.556,87.518,4.22058317]
[1772476063499,4.30237963,87.554,87.509,4.22058317]
[1772476063679,4.30237963,87.549,87.509,32.78876008]
[1772476064179,4.30237963,87.549,87.51,4.22058317]
[1772476066784,4.30237963,87.549,87.512,4.22058317]
[1772476067372,11.42087931,87.559,87.512,4.22058317]
[1772476067576,4.24697632,87.56,87.518,4.13105445]
[1772476067987,11.41993757,87.567,87.518,4.13105445]
[1772476068377,4.24697632,87.566,87.518,4.13105445]
[1772476069293,4.24697632,87.566,87.513,0.28432314]
[1772476069294,4.24697632,87.564,87.52,4.13105445]
[1772476070771,28.5471747,87.575,87.519,39.99131616]
[1772476070772,57.05725701,87.632,87.529,7.82488847]
[1772476070970,4.01036178,87.61,87.548,4.13105445]
[1772476071171,11.4143524,87.609,87.553,4.41537759]
[1772476071394,4.01036178,87.6,87.553,4.41537759]
[1772476071571,11.4143524,87.609,87.553,4.41537759]
[1772476072296,11.4143524,87.609,87.556,4.13105445]
[1772476073196,11.4143524,87.609,87.558,4.13105445]
[1772476073400,4.24697632,87.612,87.564,4.13105445]
[1772476073694,11.41409183,87.611,87.564,4.13105445]
[1772476074092,4.24697632,87.61,87.564,4.13105445]
[1772476075296,4.24697632,87.608,87.565,11.42008793]
[1772476075474,4.24697632,87.599,87.565,11.42008793]
[1772476075887,4.24697632,87.599,87.566,4.13105445]
[1772476076995,4.24697632,87.619,87.566,4.13105445]
[1772476077387,4.24697632,87.618,87.568,4.13105445]
[1772476079097,4.24697632,87.609,87.567,11.4198271]
[1772476079293,4.24697632,87.609,87.568,4.13105445]
[1772476079489,4.24697632,87.625,87.57,4.13105445]
[1772476079694,4.24697632,87.579,87.519,4.13105445]
[1772476079882,1.33565902,87.578,87.519,4.13105445]
[1772476080081,1.33565902,87.578,87.522,4.13105445]
[1772476080283,1.33565902,87.578,87.524,4.13105445]
[1772476080786,1.33565902,87.579,87.524,4.13105445]
[1772476081106,11.41839274,87.578,87.534,4.13105445]
[1772476081288,1.33565902,87.577,87.534,4.13105445]
[1772476081493,10.72593081,87.57,87.518,4.13105445]
[1772476081682,1.33565902,87.577,87.518,4.13105445]
[1772476082002,4.24697632,87.569,87.524,4.13105445]
[1772476084613,4.24697632,87.549,87.506,4.13105445]
[1772476084778,4.24697632,87.539,87.499,11.42859697]
[1772476085389,4.24697632,87.529,87.495,11.42920039]
[1772476085707,4.24697632,87.529,87.495,15.56025484]
[1772476086277,4.24697632,87.529,87.496,4.13105445]
[1772476086701,11.42491545,87.528,87.497,11.42896327]
[1772476087286,4.24697632,87.527,87.497,11.42896327]
[1772476087889,4.24697632,87.527,87.497,15.56001772]
[1772476089305,4.24697632,87.527,87.497,44.13242591]
[1772476090802,11.42517651,87.526,87.497,15.56001772]
[1772476091010,15.67215283,87.526,87.497,15.56001772]
[1772476092589,4.24697632,87.534,87.498,4.13105445]
[1772476092793,11.42334125,87.541,87.498,4.13105445]
[1772476093003,1.33565902,87.54,87.498,4.13105445]
[1772476094113,4.24697632,87.529,87.488,4.13105445]
[1772476094786,15.67063803,87.538,87.49,4.13105445]
[1772476094989,4.24697632,87.536,87.49,4.13105445]
[1772476095209,4.24697632,87.534,87.49,4.13105445]
[1772476095511,4.24697632,87.532,87.49,4.13105445]
[1772476095685,5.70446266,87.531,87.49,4.13105445]
[1772476096314,1e-08,87.55,87.497,4.48082783]
[1772476096493,4.36880364,87.57,87.513,4.48082783]
[1772476097113,4.36880364,87.589,87.518,4.76515097]
[1772476097293,4.36880364,87.589,87.492,61.6]
[1772476097294,4.36880364,87.588,87.526,4.76515097]
[1772476098085,4.36880364,87.588,87.526,4.48082783]
[1772476098288,4.36880364,87.588,87.523,1.14255681]
[1772476098289,4.41411275,87.577,87.528,4.22033931]
[1772476098808,4.41411275,87.586,87.534,4.22033931]
[1772476098986,11.41616416,87.596,87.534,4.22033931]
[1772476099186,6.06079074,87.64,87.546,4.22033931]
[1772476099407,10.72593081,87.61,87.554,4.22033931]
[1772476099701,10.72593081,87.6,87.554,4.22033931]
[1772476100306,131.31873145,87.64,87.53,3.69383402]
[1772476100307,10.72593081,87.61,87.556,4.22033931]
[1772476100524,11.41367613,87.615,87.564,4.22033931]
[1772476101311,10.72593081,87.61,87.564,4.22033931]
[1772476101895,1.09416522,87.609,87.564,4.22033931]
[1772476102100,1.09416522,87.599,87.564,4.22033931]
[1772476102297,11.41565542,87.599,87.566,4.22033931]
[1772476102807,11.41565542,87.599,87.539,3.69383402]
[1772476102808,1.09416522,87.603,87.557,4.22033931]
[1772476103007,10.72593081,87.59,87.558,11.42100093]
[1772476103389,1.09416522,87.589,87.557,4.22033931]
[1772476103590,1.09416522,87.569,87.522,4.22033931]
[1772476104193,10.72593081,87.56,87.522,4.22033931]
[1772476104403,11.42070745,87.561,87.524,4.22033931]
[1772476106111,11.82009603,87.56,87.524,4.22033931]
[1772476106498,11.42087049,87.559,87.525,11.42530705]
[1772476107697,10.72593081,87.55,87.515,11.4265043]
[1772476107995,1.09416522,87.549,87.515,11.4265043]
[1772476108396,11.42347982,87.539,87.513,4.22033931]
[1772476108701,11.42347982,87.539,87.498,28.57205413]
[1772476108702,1.09416522,87.538,87.5,4.22033931]
[1772476109012,1.09416522,87.529,87.491,4.22033931]
[1772476109313,1.09416522,87.529,87.492,15.64995573]
[1772476109614,11.42347982,87.539,87.493,4.22033931]
[1772476110114,11.42288708,87.544,87.493,4.22033931]
[1772476111098,28.55593914,87.548,87.493,4.22033931]
[1772476111297,1.09416522,87.547,87.495,4.22033931]
[1772476111497,28.55593914,87.548,87.495,4.22033931]
[1772476111498,1.09416522,87.539,87.495,4.22033931]
[1772476113699,10.72593081,87.53,87.497,4.22033931]
[1772476113898,39.9826361,87.538,87.463,1.14334061]
[1772476113899,10.72593081,87.52,87.49,4.22033931]
[1772476114317,1.09416522,87.529,87.49,4.22033931]
[1772476115600,1.09416522,87.536,87.492,4.22033931]
[1772476115805,10.72593081,87.53,87.492,4.22033931]
[1772476116713,1.09416522,87.536,87.492,4.22033931]
[1772476117517,10.74633001,87.53,87.493,11.42948578]
[1772476117821,10.74633001,87.53,87.494,4.22033931]
[1772476118010,11.42400182,87.535,87.494,4.22033931]
[1772476119638,40.39903996,87.54,87.494,4.22033931]
[1772476119639,1.09416522,87.534,87.494,4.22033931]
[1772476119812,1.09416522,87.534,87.434,45.7487262]
[1772476119813,1.09416522,87.529,87.486,4.22033931]
[1772476121226,1.09416522,87.519,87.486,4.22033931]
[1772476121525,11.84049523,87.53,87.486,4.22033931]
[1772476121730,11.42478492,87.529,87.488,4.22033931]
[1772476123911,11.42407107,87.535,87.49,4.22033931]
[1772476124407,10.74633001,87.54,87.49,4.22033931]
[1772476124612,11.42217501,87.549,87.494,4.22033931]
[1772476124813,1.09416522,87.548,87.495,4.22033931]
[1772476125112,10.74633001,87.54,87.495,4.22033931]
[1772476125516,1.09416522,87.539,87.495,4.22033931]
[1772476127140,11.42361031,87.538,87.497,4.22033931]
[1772476127841,1.09416522,87.547,87.497,4.22033931]
[1772476128016,11.42256642,87.546,87.497,4.22033931]
[1772476128328,11.42256642,87.546,87.496,40.00182865]
[1772476128329,11.42256642,87.546,87.503,4.09699499]
[1772476129025,10.74633001,87.56,87.503,4.09699499]
[1772476129228,1.09416522,87.557,87.505,4.09699499]
[1772476129436,10.74633001,87.52,87.48,11.43118427]
[1772476129614,10.74633001,87.52,87.481,4.09699499]
[1772476130723,1.09416522,87.518,87.482,4.09699499]
[1772476132628,1.09416522,87.518,87.481,11.43097362]
[1772476132832,1.09416522,87.516,87.478,4.09699499]
[1772476133923,1.09416522,87.533,87.478,4.09699499]
[1772476134129,10.74633001,87.52,87.478,4.09699499]
[1772476134311,1.09416522,87.509,87.478,4.09699499]
[1772476134517,10.74633001,87.51,87.475,4.09699499]
[1772476134751,11.42609033,87.519,87.476,11.43170698]
[1772476134945,11.42609033,87.519,87.477,4.09699499]
[1772476135611,12.52025555,87.519,87.477,4.09699499]
[1772476135826,1.09416522,87.509,87.477,4.09699499]
[1772476137128,1.09416522,87.507,87.477,4.09699499]
[1772476137638,1.09416522,87.507,87.478,11.43144562]
[1772476137838,1.09416522,87.507,87.477,4.09699499]
[1772476138018,1.09416522,87.499,87.467,11.43288325]
[1772476138218,1.09416522,87.499,87.468,4.09699499]